bitfinex/quotes_SOLUSD_20250307
["timestamp","ask_amount","ask_price","bid_price","bid_amount"]
[1741354160038,0.03,143.56,143.55,20.14216157]
[1741354160244,0.03,143.56,143.55,39.07613357]
[1741354160452,0.03,143.59,143.58,20.14216157]
[1741354160744,10.84142169,143.65,143.61,20.14216157]
[1741354160930,10.84142169,143.65,143.62,39.07613357]
[1741354161312,10.84142169,143.65,143.64,19.07613357]
[1741354161534,10.90819391,143.67,143.66,39.07613357]
[1741354162454,93.00819391,143.67,143.66,0.14216157]
[1741354162657,93.00819391,143.67,143.57,38.86289121]
[1741354162950,82.1,143.66,143.57,0.21324235]
[1741354163112,100.74964886,143.65,143.57,0.21324235]
[1741354163309,82.1,143.65,143.57,0.21324235]
[1741354163638,82.1,143.66,143.6,0.14216157]
[1741354163813,82.1,143.65,143.6,0.14216157]
[1741354164013,20.0,143.61,143.47,135.233]
[1741354164228,82.1,143.6,143.47,0.033]
[1741354164431,82.1,143.6,143.52,20.0]
[1741354164628,10.93819391,143.67,143.58,19.07613357]
[1741354164629,82.1,143.65,143.58,19.07613357]
[1741354164831,93.03819391,143.67,143.62,0.14216157]
[1741354165134,93.03819391,143.67,143.66,0.42648471]
[1741354165135,10.93819391,143.67,143.66,0.42648471]
[1741354165337,10.93819391,143.67,143.66,0.14216157]
[1741354165554,10.93819391,143.67,143.63,0.42648471]
[1741354166026,0.03,143.67,143.63,0.42648471]
[1741354166631,82.1,143.66,143.6,0.14216157]
[1741354166830,0.03,143.67,143.6,0.14216157]
[1741354166831,82.1,143.65,143.6,0.14216157]
[1741354167034,82.1,143.65,143.63,0.42648471]
[1741354167822,82.1,143.65,143.6,0.42648471]
[1741354168017,82.1,143.64,143.6,0.42648471]
[1741354168642,82.1,143.63,143.57,0.21324235]
[1741354168820,82.1,143.62,143.57,0.21324235]
[1741354169016,82.1,143.62,143.6,3.11304048]
[1741354169231,82.1,143.61,143.6,3.11304048]
[1741354169447,6.9633,143.61,143.6,3.25520205]
[1741354169647,6.9633,143.61,143.6,3.11304048]
[1741354170245,6.9633,143.61,143.6,3.25520205]
[1741354170443,6.9633,143.61,143.6,3.11304048]
[1741354170947,6.9633,143.61,143.6,3.25520205]
[1741354171259,24.3715,143.61,143.52,312.0]
[1741354171455,17.4082,143.61,143.52,312.0]
[1741354171639,17.4082,143.61,143.53,0.42648471]
[1741354171835,6.9623,143.63,143.53,19.07613357]
[1741354172242,24.3681,143.63,143.53,19.07613357]
[1741354172460,24.3681,143.63,143.53,39.07613357]
[1741354173155,20.0,143.6,143.5,18.64964886]
[1741354173355,24.3748,143.59,143.5,18.64964886]
[1741354173558,24.3748,143.59,143.51,0.42648471]
[1741354174062,24.3748,143.59,143.5,18.64964886]
[1741354174241,24.3748,143.59,143.51,0.42648471]
[1741354175442,24.3748,143.59,143.51,312.42648471]
[1741354175643,18.64964886,143.58,143.49,150.913]
[1741354175844,6.9642,143.59,143.49,20.033]
[1741354176044,6.9623,143.63,143.54,0.42648471]
[1741354176245,26.1105994,143.64,143.54,19.07613357]
[1741354176854,26.1105994,143.64,143.54,20.12066488]
[1741354176855,19.1487994,143.64,143.54,20.12066488]
[1741354177159,19.1487994,143.64,143.62,0.14216157]
[1741354177363,19.1487994,143.64,143.62,19.07613357]
[1741354177739,6.9585,143.71,143.62,19.07613357]
[1741354178663,20.0,143.72,143.64,331.07613357]
[1741354178852,26.9582,143.72,143.64,331.07613357]
[1741354179269,6.9582,143.72,143.64,331.07613357]
[1741354179467,6.987,143.74,143.64,331.07613357]
[1741354181140,0.03,143.74,143.64,331.07613357]
[1741354181555,0.03,143.74,143.64,338.03793357]
[1741354182567,20.0,143.72,143.64,312.0]
[1741354182767,0.03,143.74,143.63,18.64964886]
[1741354182959,0.03,143.74,143.64,20.11980545]
[1741354183598,0.03,143.74,143.64,27.08160545]
[1741354184083,0.03,143.74,143.66,39.07613357]
[1741354184251,0.03,143.74,143.66,38.79181043]
[1741354184447,0.03,143.74,143.67,18.79181043]
[1741354184644,0.03,143.74,143.69,0.14216157]
[1741354185041,20.0,143.73,143.6,18.64964886]
[1741354185243,20.0,143.73,143.63,20.0]
[1741354185472,20.0,143.73,143.64,18.79181043]
[1741354185676,26.9577,143.73,143.66,0.14216157]
[1741354186152,26.9577,143.73,143.59,18.64964886]
[1741354186463,26.9577,143.73,143.63,0.42648471]
[1741354186670,20.0,143.73,143.63,19.07613357]
[1741354186962,26.9574,143.73,143.63,0.42648471]
[1741354187168,26.9574,143.73,143.62,18.64964886]
[1741354187354,26.9574,143.73,143.63,0.42648471]
[1741354187769,6.9574,143.73,143.63,0.42648471]
[1741354188094,26.9574,143.73,143.63,26.03843357]
[1741354188367,0.03,143.74,143.63,26.03843357]
[1741354188563,6.987,143.74,143.63,26.03843357]
[1741354189166,0.03,143.74,143.69,0.42648471]
[1741354189547,6.9872,143.74,143.69,0.42648471]
[1741354189748,0.03,143.74,143.69,0.42648471]
[1741354189961,0.03,143.74,143.71,0.14216157]
[1741354191089,0.03,143.74,143.71,0.42648471]
[1741354191374,0.03,143.74,143.73,0.42648471]
[1741354191547,0.03,143.74,143.73,0.14216157]
[1741354191745,0.03,143.74,143.68,7.17304235]
[1741354192179,0.03,143.74,143.68,0.35540392]
[1741354192481,0.03,143.74,143.68,0.21324235]
[1741354192980,0.03,143.74,143.69,0.14216157]
[1741354193175,0.03,143.74,143.68,0.49756549]
[1741354193379,0.03,143.74,143.69,0.14216157]
[1741354193764,0.03,143.74,143.71,0.14216157]
[1741354196151,0.03,143.74,143.71,0.42648471]
[1741354196457,0.03,143.74,143.71,0.14216157]
[1741354196765,0.03,143.74,143.71,312.14216157]
[1741354197880,20.0,143.73,143.68,0.21324235]
[1741354198055,20.0,143.73,143.69,0.14216157]
[1741354198379,20.0,143.73,143.58,3.04399843]
[1741354198675,20.0,143.73,143.63,19.07613357]
[1741354198874,0.03,143.74,143.63,19.07613357]
[1741354198875,0.03,143.74,143.67,19.07613357]
[1741354199976,0.03,143.74,143.62,18.64964886]
[1741354200180,20.0,143.71,143.62,18.64964886]
[1741354200692,2.0,143.51,143.5,8.994e-05]
[1741354200855,2.0,143.42,143.4,0.033]
[1741354201050,2.0,143.37,143.36,34.19227721]
[1741354201273,36.73342276,143.37,143.36,0.033]
[1741354201573,34.94728792,143.32,143.2,34.25472973]
[1741354201776,34.64475138,143.35,143.26,10.53413918]
[1741354201958,34.63880776,143.34,143.26,10.53413918]
[1741354202156,53.53823461,143.42,143.27,2.0]
[1741354202476,0.28432314,143.46,143.26,17.51423918]
[1741354202663,18.933972,143.46,143.29,20.0]
[1741354202867,167.24525593,143.34,143.29,20.0]
[1741354203063,18.64964886,143.48,143.3,60.51964886]
[1741354203271,50.0,143.73,143.34,25.74410102]
[1741354203467,0.03,143.77,143.35,150.72]
[1741354203653,0.03,143.83,143.43,34.43133704]
[1741354203973,2.819161,143.96,143.61,41.49411994]
[1741354204179,5.46238058,143.99,143.66,0.28432314]
[1741354204362,175.33543955,144.26,143.96,2.819161]
[1741354204363,34.32461386,144.16,143.96,2.819161]
[1741354204685,34.32461386,144.16,143.91,0.28432314]
[1741354204859,2.0,144.18,143.91,0.28432314]
[1741354205197,86.73137357,144.19,143.92,1.27054712]
[1741354205198,41.50687004,144.19,143.92,1.27054712]
[1741354205362,41.50687004,144.19,144.02,0.28432314]
[1741354205679,76.36571536,144.19,144.08,2.0]
[1741354205875,76.36571536,144.19,144.03,1.26957677]
[1741354205876,34.35583569,144.23,144.1,0.28432314]
[1741354206179,34.78811922,144.33,144.22,2.0]
[1741354206355,216.82843394,144.44,144.26,2.28432314]
[1741354206560,34.83771941,144.51,144.33,0.28432314]
[1741354206760,50.0,144.82,144.31,0.28432314]
[1741354206761,260.19412073,144.52,144.37,0.28432314]
[1741354206961,34.44233235,144.72,144.58,2.0]
[1741354207166,34.44233235,144.72,144.38,7.23418532]
[1741354207381,84.44233235,144.72,144.34,0.28432314]
[1741354207568,34.44233235,144.72,144.39,0.28432314]
[1741354207767,34.44233235,144.72,144.38,8.1802927]
[1741354207768,34.44233235,144.72,144.5,0.28432314]
[1741354207979,281.87696413,144.73,144.5,0.28432314]
[1741354207980,241.39536413,144.73,144.52,0.28432314]
[1741354208178,1.8726924,144.84,144.52,0.28432314]
[1741354208179,34.82631219,144.83,144.58,0.28432314]
[1741354208495,303.55980752,144.93,144.6,0.28432314]
[1741354208663,303.55980752,144.93,144.61,7.8077183]
[1741354208866,303.55980752,144.93,144.62,84.32504757]
[1741354209194,266.02330752,144.93,144.68,50.28432314]
[1741354209373,51.8726924,145.12,144.93,6.8475544]
[1741354209689,1.9999995,145.14,144.93,6.8475544]
[1741354209868,0.4,145.23,144.93,6.8475544]
[1741354209869,2.5998215,145.12,144.95,24.1462]
[1741354210062,5.39418483,145.11,144.93,6.8475544]
[1741354210263,1.9999995,145.07,144.94,0.28432314]
[1741354210631,2.5998215,145.12,144.96,0.28432314]
[1741354210632,1.9999995,145.04,144.96,0.28432314]
[1741354210905,2.5998215,145.12,145.0,50.0]
[1741354211106,2.5998215,145.12,145.03,0.28432314]
[1741354211310,2.5998215,145.12,145.01,0.28432314]
[1741354211311,2.5998215,145.12,145.1,0.28432314]
[1741354211469,2.5998215,145.12,145.11,1.54445092]
[1741354211670,2.5998215,145.12,145.11,51.54445092]
[1741354212101,6.8794,145.36,145.18,34.58793004]
[1741354212310,23.50461065,145.35,145.11,8.85247659]
[1741354212475,191.1453,145.4,145.19,1.25943345]
[1741354212797,34.3941,145.38,145.12,34.29195573]
[1741354212999,0.14216157,145.37,145.13,36.18546292]
[1741354213173,34.3941,145.38,145.13,1.25995412]
[1741354213375,34.3941,145.38,145.14,34.49742249]
[1741354213597,0.03,145.19,145.14,34.49742249]
[1741354213785,0.03,145.19,145.15,1.25978052]
[1741354214275,0.03,145.19,145.1,0.28432314]
[1741354214492,0.03,145.19,145.11,1.26012778]
[1741354214693,125.9299985,145.2,145.12,0.28432314]
[1741354215028,110.97022047,145.2,145.04,20.717979]
[1741354215322,149.68,145.34,145.04,20.717979]
[1741354215614,149.68,145.34,145.14,0.28432314]
[1741354215822,6.8813,145.32,145.13,2.0]
[1741354215987,6.8813,145.32,145.05,1.26064903]
[1741354215988,149.68,145.34,145.19,2.0]
[1741354216195,22.8299201,145.41,145.25,2.0]
[1741354216422,22.8299201,145.41,145.27,0.28432314]
[1741354216627,22.8299201,145.41,145.31,2.0]
[1741354216790,22.8299201,145.41,145.34,2.28432314]
[1741354216996,22.8299201,145.41,145.31,2.0]
[1741354217208,22.8299201,145.41,145.33,2.0]
[1741354217399,22.8299201,145.41,145.38,2.0]
[1741354217599,22.8299201,145.41,145.39,2.28432314]
[1741354217831,22.8299201,145.41,145.4,2.28432314]
[1741354218142,149.68,145.6,145.45,2.0]
[1741354218432,20.672045,145.72,145.47,0.28432314]
[1741354218633,20.672045,145.72,145.49,0.28432314]
[1741354218797,20.672045,145.72,145.51,2.28432314]
[1741354218999,20.672045,145.72,145.55,0.14216157]
[1741354219316,20.672045,145.72,145.57,0.28432314]
[1741354219634,149.42,145.89,145.67,0.28432314]
[1741354219936,149.42,146.02,145.7,2.0]
[1741354220110,149.42,146.02,145.74,2.0]
[1741354220291,149.42,146.02,145.78,2.0]
[1741354220493,23.9775,145.97,145.76,2.0]
[1741354220732,23.9775,145.97,145.78,1.25433627]
[1741354221024,58.2311,145.97,145.78,1.25433627]
[1741354221223,31.65527982,145.97,145.71,50.0]
[1741354221406,60.71041941,145.92,145.64,50.0]
[1741354221608,60.71041941,145.92,145.69,2.0]
[1741354221803,60.71041941,145.7,145.62,50.0]
[1741354222028,149.1,145.69,145.6,50.0]
[1741354222228,149.1,145.68,145.62,2.0]
[1741354222453,149.1,145.71,145.6,50.0]
[1741354222614,149.1,145.71,145.61,0.28432314]
[1741354222809,149.1,145.71,145.6,70.639343]
[1741354222810,60.71041941,145.62,145.6,20.639343]
[1741354223015,20.0,145.68,145.5,50.0]
[1741354223215,20.0,145.68,145.4,2.0]
[1741354223216,149.1,145.71,145.38,2.0]
[1741354223438,20.0,145.68,145.44,2.0]
[1741354223837,20.0,145.64,145.42,50.0]
[1741354224162,0.28432314,145.7,145.47,2.0]
[1741354224452,0.28432314,145.68,145.51,2.0]
[1741354224663,0.28432314,145.66,145.52,2.0]
[1741354224842,1.27564367,145.67,145.57,2.0]
[1741354225042,0.03,145.69,145.54,0.14216157]
[1741354225354,0.03,145.69,145.52,2.0]
[1741354225355,20.0,145.67,145.51,0.28432314]
[1741354225563,149.1,145.71,145.47,50.0]
[1741354225850,149.1,145.71,145.58,2.0]
[1741354226161,149.0,145.93,145.72,2.0]
[1741354226325,1.27564367,145.92,145.77,2.0]
[1741354226522,1.27564367,145.92,145.8,2.0]
[1741354226735,149.0,145.93,145.86,2.0]
[1741354226954,72.60824502,145.93,145.87,2.0]
[1741354227141,72.60824502,145.93,145.78,20.0]
[1741354227347,79.46084502,145.93,145.79,0.28432314]
[1741354227544,64.65969104,145.93,145.8,0.28432314]
[1741354227743,20.0,145.9,145.8,0.28432314]
[1741354227947,148.82,145.95,145.79,2.0]
[1741354228146,60.71041941,145.92,145.79,0.28432314]
[1741354228355,60.71041941,145.92,145.78,20.618454]
[1741354228657,148.82,145.94,145.78,20.618454]
[1741354228827,1.27564367,145.91,145.78,22.618454]
[1741354229160,60.71041941,145.79,145.36,2.0]
[1741354229500,60.71041941,145.64,145.52,0.08298828]
[1741354229778,20.0,145.7,145.37,1.25787399]
[1741354229943,20.0,145.7,145.49,50.0]
[1741354230264,60.71041941,145.6,145.51,20.64685]
[1741354230569,60.71041941,145.73,145.37,1.25787399]
[1741354230570,22.0,145.7,145.59,50.0]
[1741354230772,34.304,145.76,145.5,50.0]
[1741354230949,2.0,145.67,145.47,20.648087]
[1741354231143,2.0,145.7,145.42,50.0]
[1741354231351,2.0,145.61,145.43,1.25735503]
[1741354231556,20.0,145.57,145.36,50.0]
[1741354231763,60.71041941,145.54,145.38,20.0]
[1741354231971,73.15183904,145.6,145.42,50.0]
[1741354231972,6.8714,145.53,145.42,50.0]
[1741354232152,2.0,145.48,145.39,50.0]
[1741354232360,58.407,145.53,145.3,20.670781]
[1741354232587,60.71041941,145.42,145.3,20.670781]
[1741354232786,60.71041941,145.31,145.29,50.0]
[1741354233083,2.0,145.29,145.23,50.0]
[1741354233285,60.71041941,145.26,145.13,50.0]
[1741354233586,60.71041941,145.18,145.13,1.25995412]
[1741354233748,20.0,145.2,145.14,50.0]
[1741354233950,20.0,145.13,145.06,50.0]
[1741354234283,60.71041941,145.07,144.98,1.1611937]
[1741354234444,60.71041941,144.99,144.98,1.1611937]
[1741354234651,2.0,144.94,144.85,78.60223826]
[1741354234862,121.42083882,144.99,144.85,78.60223826]
[1741354234863,20.0,144.99,144.85,78.60223826]
[1741354235186,60.71041941,144.97,144.85,78.60223826]
[1741354235484,0.28432314,145.16,144.85,80.60223826]
[1741354235773,148.8,145.17,144.77,8.9075]
[1741354235774,0.28432314,144.96,144.77,8.9075]
[1741354235981,1.27564367,145.15,144.81,50.0]
[1741354235982,0.28432314,145.1,144.81,50.0]
[1741354236181,148.8,145.11,144.81,50.0]
[1741354236381,0.28432314,145.1,144.93,60.71041941]
[1741354236549,0.28432314,145.1,144.93,2.0]
[1741354236756,149.0,145.24,145.04,2.0]
[1741354236757,0.28432314,145.08,145.04,2.0]
[1741354237062,149.0,145.36,145.04,62.71041941]
[1741354237251,1.20186477,145.35,145.12,2.0]
[1741354237446,1.20186477,145.35,145.0,20.0]
[1741354237447,1.20186477,145.35,145.23,2.0]
[1741354237677,1.20186477,145.35,144.97,60.71041941]
[1741354237678,60.71041941,145.31,145.26,2.0]
[1741354237858,60.71041941,145.27,145.25,312.0]
[1741354238201,58.4834,145.34,145.18,60.71041941]
[1741354238346,58.4834,145.34,145.12,22.0]
[1741354238347,6.8728,145.5,145.26,22.0]
[1741354238546,60.71041941,145.42,145.29,2.0]
[1741354238752,173.0549,145.5,145.4,2.0]
[1741354238942,60.71041941,145.41,145.3,60.99474255]
[1741354239158,173.0549,145.5,145.28,2.0]
[1741354239362,173.0549,145.5,145.37,60.71041941]
[1741354239577,60.71041941,145.38,145.25,2.0]
[1741354239871,24.0549,145.5,145.37,60.71041941]
[1741354240075,24.0549,145.5,145.13,2.0]
[1741354240076,58.4191,145.5,145.36,2.0]
[1741354240273,58.4191,145.5,145.38,2.0]
[1741354240472,6.8723,145.52,145.35,2.0]
[1741354240668,20.0,145.49,145.33,2.0]
[1741354240875,6.8723,145.52,145.37,22.0]
[1741354241179,6.8723,145.52,145.33,2.0]
[1741354241386,6.8723,145.52,145.23,50.0]
[1741354241387,6.8723,145.52,145.24,2.0]
[1741354241559,60.71041941,145.43,145.34,2.0]
[1741354241760,0.28432314,145.43,145.27,2.0]
[1741354241957,24.0665,145.43,145.32,2.0]
[1741354242172,24.0665,145.43,145.21,2.0]
[1741354242381,20.0,145.4,145.22,1.25917327]
[1741354242557,20.0,145.21,145.05,50.0]
[1741354242764,20.0,145.23,145.05,1.26064903]
[1741354242965,137.02734602,145.26,145.06,62.71041941]
[1741354243178,0.28432314,145.25,145.2,2.0]
[1741354243359,0.14216157,145.29,145.26,2.0]
[1741354243558,92.8281,145.43,145.25,0.14216157]
[1741354243759,18.64964886,145.39,145.32,2.14216157]
[1741354243959,60.71041941,145.41,145.28,2.0]
[1741354244276,6.8746,145.47,145.32,22.0]
[1741354244503,155.8322,145.52,145.4,0.14216157]
[1741354244703,148.96,145.52,145.37,0.28432314]
[1741354245000,148.96,145.52,145.39,2.0]
[1741354245001,117.02734602,145.52,145.39,2.0]
[1741354245218,117.02734602,145.52,145.37,1.47111634]
[1741354245219,60.71041941,145.4,145.37,1.47111634]
[1741354245428,20.0,145.49,145.22,2.0]
[1741354245592,0.14216157,145.51,145.35,2.0]
[1741354245791,123.89954602,145.52,145.26,52.0]
[1741354245991,117.14712607,145.52,145.32,2.0]
[1741354246291,60.71041941,145.33,145.27,1.25873988]
[1741354246494,60.71041941,145.28,145.18,2.0]
[1741354246697,0.28432314,145.47,145.22,18.64964886]
[1741354247011,20.0,145.42,145.24,2.0]
[1741354247330,20.0,145.42,145.19,1.25943345]
[1741354247504,0.14216157,145.5,145.19,2.0]
[1741354247710,60.71041941,145.29,145.2,19.90899557]
[1741354247917,18.65547688,145.51,145.16,2.21324235]
[1741354247918,6.8818,145.31,145.16,2.21324235]
[1741354248261,58.4191,145.5,145.19,2.0]
[1741354248419,58.4191,145.5,145.24,2.28432314]
[1741354248726,58.4191,145.5,145.31,2.14216157]
[1741354248727,24.0549,145.5,145.31,2.14216157]
[1741354248916,6.8728,145.5,145.32,0.14216157]
[1741354249121,24.0549,145.5,145.32,0.14216157]
[1741354249418,0.14216157,145.46,145.28,0.21324235]
[1741354249606,60.71041941,145.29,145.19,2.0]
[1741354249806,20.0,145.31,145.14,2.0]
[1741354250010,6.8733,145.49,145.23,2.0]
[1741354250209,18.64964886,145.41,145.29,2.0]
[1741354250411,24.0566,145.49,145.32,0.14216157]
[1741354250617,6.8733,145.49,145.34,0.14216157]
[1741354250826,93.09522607,145.52,145.36,2.0]
[1741354251024,6.8727,145.51,145.34,0.14216157]
[1741354251237,60.71041941,145.38,145.34,0.14216157]
[1741354251529,0.03,145.45,145.34,0.14216157]
[1741354251730,60.71041941,145.39,145.34,0.14216157]
[1741354251893,0.03,145.45,145.34,0.14216157]
[1741354252123,0.03,145.54,145.41,2.0]
[1741354252316,60.71041941,145.45,145.4,2.0]
[1741354252560,0.03,145.54,145.41,2.0]
[1741354252728,0.03,145.54,145.45,2.0]
[1741354252929,20.0,145.51,145.38,2.0]
[1741354253147,0.03,145.54,145.4,36.12550545]
[1741354253358,122.37233512,145.55,145.44,36.3474007]
[1741354253522,122.37233512,145.55,145.39,20.19167296]
[1741354253523,60.71041941,145.54,145.38,2.0]
[1741354253718,20.0,145.5,145.38,2.0]
[1741354253921,20.0,145.46,145.37,2.0]
[1741354254128,60.71041941,145.41,145.35,36.39445371]
[1741354254343,20.0,145.47,145.37,34.49990352]
[1741354254551,60.71041941,145.45,145.37,34.49990352]
[1741354254767,20.0,145.47,145.38,34.24638134]
[1741354255057,60.71041941,145.56,145.47,2.0]
[1741354255235,0.03,145.6,145.46,34.99505592]
[1741354255236,0.03,145.6,145.51,36.31508966]
[1741354255551,60.71041941,145.55,145.5,34.42672306]
[1741354255785,0.03,145.6,145.51,2.0]
[1741354256057,0.03,145.6,145.39,20.66421]
[1741354256058,0.03,145.6,145.53,2.0]
[1741354256357,0.03,145.6,145.55,34.80711014]
[1741354256660,0.03,145.6,145.56,34.98497103]
[1741354256823,0.03,145.6,145.57,9.81593061]
[1741354257456,60.71041941,145.73,145.57,9.81593061]
[1741354257457,18.64964886,145.72,145.57,9.81593061]
[1741354257667,60.71041941,145.6,145.57,9.81593061]
[1741354257831,18.64964886,145.72,145.57,9.81593061]
[1741354258036,60.71041941,145.59,145.52,2.0]
[1741354258354,76.98044886,145.72,145.53,2.0]
[1741354258667,60.71041941,145.57,145.53,4.33945695]
[1741354258850,0.28432314,145.7,145.53,4.33945695]
[1741354259031,29.16093685,145.72,145.58,2.0]
[1741354259235,50.0,145.88,145.57,36.49967095]
[1741354259465,60.71041941,145.73,145.53,6.33945695]
[1741354259677,0.28432314,145.69,145.54,4.33945695]
[1741354259871,60.71041941,145.57,145.54,4.33945695]
[1741354260170,60.99474255,145.55,145.54,4.33945695]
[1741354260377,60.99474255,145.55,145.54,4.05525695]
[1741354260539,60.99474255,145.55,145.46,50.70370737]
[1741354260540,6.8695,145.57,145.46,50.70370737]
[1741354260741,0.28432314,145.56,145.46,50.70370737]
[1741354261069,60.71041941,145.48,145.43,50.70370737]
[1741354261242,60.71041941,145.44,145.43,50.70370737]
[1741354261640,20.0,145.41,145.39,16.70379008]
[1741354261874,60.71041941,145.4,145.39,16.70379008]
[1741354262076,5.4997,145.46,145.39,16.70379008]
[1741354262237,19.2491,145.46,145.34,29.52365358]
[1741354262440,20.0,145.43,145.34,29.52365358]
[1741354262752,148.82,145.47,145.34,4.02105358]
[1741354262753,60.71041941,145.35,145.34,4.02105358]
[1741354262953,92.34085729,145.47,145.34,4.02105358]
[1741354263152,60.71041941,145.36,145.34,4.02105358]
[1741354263368,60.69252645,145.47,145.34,3.73685358]
[1741354263554,60.69252645,145.47,145.19,0.033]
[1741354263555,60.69252645,145.47,145.33,2.0]
[1741354263760,60.69252645,145.47,145.32,2.0]
[1741354263957,60.71041941,145.4,145.32,36.64968921]
[1741354264157,60.69252645,145.47,145.39,2.0]
[1741354264354,60.69252645,145.47,145.37,0.14216157]
[1741354264540,60.71041941,145.44,145.4,2.0]
[1741354264873,66.19192645,145.47,145.37,2.0]
[1741354265074,26.180682,145.56,145.49,0.14216157]
[1741354265372,13.7335,145.63,145.52,2.14216157]
[1741354265542,5.4933,145.64,145.55,0.14216157]
[1741354265744,13.7264,145.71,145.55,0.14216157]
[1741354266062,60.71041941,145.58,145.57,0.28432314]
[1741354266249,0.03,145.73,145.64,2.0]
[1741354266449,0.03,145.73,145.65,0.14216157]
[1741354266761,60.71041941,145.66,145.54,2.0]
[1741354266962,107.40211941,145.73,145.51,2.0]
[1741354267156,107.40211941,145.73,145.5,0.14216157]
[1741354267157,28.77776543,145.52,145.5,0.14216157]
[1741354267356,28.77776543,145.52,145.39,8.61106444]
[1741354267357,148.84,145.6,145.46,2.0]
[1741354267549,168.92316329,145.73,145.5,2.0]
[1741354267550,148.84,145.59,145.5,2.0]
[1741354267742,148.84,145.64,145.58,0.14216157]
[1741354267945,60.71041941,145.6,145.58,0.14216157]
[1741354268143,147.40328598,145.71,145.58,0.14216157]
[1741354268352,147.40328598,145.71,145.59,2.14216157]
[1741354268563,60.71041941,145.6,145.58,0.14216157]
[1741354268747,60.71041941,145.59,145.53,101.78506224]
[1741354268961,60.71041941,145.54,145.53,101.78506224]
[1741354269147,121.70516196,145.54,145.53,19.11986224]
[1741354269348,20.0,145.5,145.36,11.47534267]
[1741354269567,0.14216157,145.49,145.42,2.0]
[1741354269880,0.28432314,145.46,145.44,4.319e-05]
[1741354270048,34.14544651,145.53,145.28,11.47534267]
[1741354270049,20.0,145.36,145.3,34.49576431]
[1741354270242,60.71041941,145.34,145.28,9.47534267]
[1741354270460,60.71041941,145.34,145.27,34.45535123]
[1741354270663,60.71041941,145.34,145.25,2.0]
[1741354270866,60.71041941,145.35,145.19,2.033]
[1741354271185,18.933972,145.44,145.36,2.0]
[1741354271465,148.8,145.63,145.44,34.3474007]
[1741354271666,60.71041941,145.48,145.45,34.82072242]
[1741354271857,148.8,145.63,145.42,0.14216157]
[1741354272171,60.71041941,145.43,145.42,0.14216157]
[1741354272360,20.0,145.51,145.43,43.61116145]
[1741354272571,60.71041941,145.44,145.43,43.61116145]
[1741354272743,60.71041941,145.36,145.31,34.46847508]
[1741354273067,18.933972,145.4,145.28,34.64998668]
[1741354273273,18.933972,145.4,145.26,2.0]
[1741354273274,18.64964886,145.42,145.26,34.51652513]
[1741354273453,18.64964886,145.42,145.2,0.21324235]
[1741354273454,148.86,145.5,145.24,2.0]
[1741354273842,60.71041941,145.28,145.23,2.0]
[1741354274045,60.71041941,145.28,145.2,0.21324235]
[1741354274273,60.71041941,145.35,145.19,0.033]
[1741354274450,60.71041941,145.28,145.27,28.59218473]
[1741354274655,60.71041941,145.28,145.27,8.473e-05]
[1741354275169,20.28432314,145.24,145.19,0.033]
[1741354275453,20.0,145.17,145.14,42.17664798]
[1741354275755,18.64964886,145.22,145.14,44.17664798]
[1741354275953,0.14216157,145.31,145.14,42.16294798]
[1741354276154,0.14216157,145.29,145.17,60.71041941]
[1741354276370,60.71041941,145.26,145.16,0.28432314]
[1741354276558,60.71041941,145.26,145.17,0.14216157]
[1741354276753,2.0645,145.31,145.19,18.79181043]
[1741354276981,2.0645,145.31,145.15,18.64964886]
[1741354277163,60.71041941,145.2,145.14,42.16294798]
[1741354277360,20.0,145.23,145.14,42.16294798]
[1741354277667,17.5485,145.31,145.17,18.64964886]
[1741354277973,60.71041941,145.22,145.15,0.14216157]
[1741354278172,20.0,145.27,145.15,0.14216157]
[1741354278353,20.0,145.28,145.17,18.64964886]
[1741354278556,20.0,145.28,145.12,0.31732314]
[1741354278776,20.0,145.28,145.12,0.033]